{"text_format":"1","workbook":"xlsx","n_sheets":5,"sheets":["ECRAN SUR TOURS","ECRAN SUR ARCHE","tours","lineaires","vent"],"not_rendered":{"charts":0,"images":4,"macros":0,"external_links":0,"defined_names":74,"comments":0,"pivot_tables":0},"unopened":[],"bounds":{"document_bytes":16777216,"sheet_cells":100000,"rows_first":2000,"rows_last":500,"rows_between":2000,"halvings":0,"cell_chars":16384,"cell_head_chars":4096},"cells_cut":0,"cells_raw":0,"read":"whole","date_system":"1900"}

{"sheet":"ECRAN SUR TOURS","index":0,"n_rows":44,"n_cols":14,"rows_kept":44,"cut":false,"hidden":false,"merged":[[2,7,2,8],[25,4,25,8],[25,0,25,1],[31,10,31,13],[23,10,23,13],[21,3,21,8]]}
["03119-NT1, vent suivant EN1991-1-4/NA."]
["Nota: Ce formulaire est transmis à titre indicatif et n'est destiné qu' à faire un pré-dimensionnement sur la compatibilité des sections choisies (*)"]
[null,null,null,null,null,null,null,"valeurs à renseigner"]
[]
[null,null,null,null,null,"A- ECRAN",null,null,null,null,"B- TOURS"]
[]
[null,null,null,null,null,"he",3,"m","hauteur de l'ecran",null,"type de tour"]
[null,null,null,null,null,"b",2,"m","largeur de l'ecran",null,"ht min",{"$f":"zg+he+1.5","v":6},"m","hauteur mini des tours/ hauteur de l'ecran"]
[null,null,null,null,null,"Arefe",{"$f":"b*he","v":6},"m2","surface de l'ecran",null,"ht",6,"m","hauteur des tours"]
[null,null,null,null,null,null,null,null,null,null,"l min",{"$f":"b+1","v":3},"m","entraxe mini entre tours"]
[null,null,null,null,null,"zg",1.5,"m","distance entre le sol et base de l'ecran",null,"l",4,"m","entraxe entre les tours"]
[null,null,null,null,null,"pe",150,"kg","poids de l'ecran",null,"em",{"$f":"INDEX(tours!A2:E4,tours!E7,4)","v":2.75},"m","empattement de l'embase"]
[null,null,null,null,null,"ppal",100,"kg","poids des palans et cablerie",null,"ptt",{"$f":"INDEX(tours!A2:E4,tours!E7,2)","v":400},"kgs","poids moyen d'une tour complete"]
[null,null,null,null,null,"pte",{"$f":"ppal+pe","v":250},"kg","poids total suspendu"]
[null,null,null,null,null,"pre",{"$f":"G14/G8","v":125},"kg/ml","poids reparti"]
[null,null,null,null,null,null,null,null,null,null,"cr_max",{"$f":"INDEX(tours!A2:E4,tours!E7,3)","v":2441},"kgf.m","Moment max. applicable à une tour"]
[null,null,null,null,null,"Fwe(z12)",{"$f":"Fwe","v":941.12927999999988},"kg","action horizontale du vent sur écran  (**)",null,"Fwt(z12)",{"$f":"fwt","v":127.15702271999999},"kg","action horizontale du vent sur 1 tour"]
[]
[null,null,null,null,null,null,null,null,null,null,"C-PONT"]
[null,null,null,null,null,null,null,null,null,null,"section de pont"]
["Valeurs de reference du vent"]
["Vb,0",24,"m/s","valeur de base de la vitesse de reférence du vent (moyenne sur 10min à 10m/sol)\npeut être ajusté en fonction du département d'exploitation (voir fig.1)",null,null,null,null,null,null,"lg pont",{"$f":"ROUNDUP(l_-0.5,0)","v":4},"m","(valeur pour calculs)"]
["Cseason",1,null,"coefficient de saison d'exploitation (voir figure 3 en dessous) (1 par defaut)",null,null,null,null,null,null,"qmax",{"$f":"INDEX(lineaires!A6:X8,lineaires!D3+1,L22+2)","v":381},"kg/ml","limité par la section de pont"]
["Vb",{"$f":"vb_0*cseason","v":24},"m/s","Vitesse de reference du vent (vmoyen sur 10min, terrain cat2, p0.02)",null,null,null,null,null,null,{"$f":"IF(pre<qmax_struc,\"section de pont compatible avec le poids de l'écran\",\"Pont incompatible: diminuer poids ou la taille de l'écran OU passer à une section de pont supérieure OU reduire l'entraxe des tours\")","v":"section de pont compatible avec le poids de l'écran"}]
[null,{"$f":"Vb*3.6","v":86.4},"km/h",null,null,null,null,null,null,null,"zep max",{"$f":"ht-1.5","v":4.5},"m","hauteur maxi sous pont"]
["categorie terrain",null,null,"II par defaut",{"$f":"(INDEX(vent!A4:G8,vent!C10,3))","v":"Rase campagne, avec ou non quelques obstacles isolés (arbres, bâtiments,\netc.) séparés les uns des autres de plus de 40 fois leur hauteur"}]
["extrait de EN 1991-1-4/NA"]
[null,null,null,null,null,null,null,null,null,null,"ptp",{"$f":"INDEX(lineaires!A6:X8,lineaires!D3+1,24)*lg_pont","v":28},"kg","estimation du poids du pont"]
[null,null,null,null,null,null,null,null,null,null,"Fwp(z12)",{"$f":"fwp","v":69.538996800000007},"kg","action horizontale du vent sur le pont"]
[null,null,null,null,null,null,null,null,null,null,"STABILITE"]
[null,null,null,null,null,null,null,null,null,null,"Mrp",{"$f":"L34*1.5","v":5848.8831928799991},"kgf.m","moment pondéré du vent appliqué à l'arche "]
[null,null,null,null,null,null,null,null,null,null,{"$f":"IF(cr_max*2>Mrp, \"TOURS COMPATIBLES AU VENT\", \"TOURS INCOMPATIBLES AU VENT, veuillez revoir la taille de l'ecran OU affiner le coefficient de saison OU augmenter la taille de tour OU passer a une arche à pattes en poutres à treillis\")","v":"TOURS INCOMPATIBLES AU VENT, veuillez revoir la taille de l'ecran OU affiner le coefficient de saison OU augmenter la taille de tour OU passer a une arche à pattes en poutres à treillis"}]
[null,null,null,null,null,null,null,null,null,null,"∑ptn",{"$f":"SUM(pte+ptt*2+L28)","v":1078},"kg","poids total de l'ensemble"]
[null,null,null,null,null,null,null,null,null,null,"Mr",{"$f":"Fwe*(zg+(he/2))+(fwt*2*ht/2)+(fwp*zep_max)","v":3899.2554619199991},"kgf.m","moment du vent appliqué à l'arche "]
[null,null,null,null,null,null,null,null,null,null,"Lest mini ",{"$f":"1.2*(((Mr/2)/em)-((∑ptn/2)/(em/2)))","v":380.34664623709074},"kg","valeur mini de chaque lest à prevoir et à placer coté face et lointain de chaque tour (aux extremités de pattes)"]
[]
[null,null,null,null,null,null,null,null,null,"Notes:"]
[null,null,null,null,null,null,null,null,null,"les tours et ponts ne sont pas habillés d'une décoration occultante; Coef. CsCd=1"]
[null,null,null,null,null,null,null,null,null,"(*) Ce formulaire est transmis à titre indicatif et n'est destiné qu' à faire un pré-dimensionnement sur la compatibilité des sections choisies."]
[null,null,null,null,null,null,null,null,null,"Il ne peut, en aucun cas, se substituer à une note de calculs officielle (à réaliser sur demande)."]
[null,null,null,null,null,null,null,null,null,"(**)il est necessaire de prevoir les sandows dans les deux coins inferieurs de l'ecran relié à l'arche pour limiter la hauteur d'action du vent"]
[]
[null,null,null,null,null,null,null,null,null,"BE calculs: Cedia industrie/S.Chrisment"]
[null,null,null,null,null,null,null,null,null,"Réf: ","03119-NT1 ©2019"]

{"sheet":"ECRAN SUR ARCHE","index":1,"n_rows":48,"n_cols":14,"rows_kept":48,"cut":false,"hidden":false,"merged":[[21,3,21,8],[23,10,23,13],[25,0,25,1],[25,4,25,8],[2,7,2,8]]}
["03119-NT1, vent suivant EN1991-1-4/NA."]
["Nota: Ce formulaire est transmis à titre indicatif et n'est destiné qu' à faire un pré-dimensionnement sur la compatibilité des sections choisies (*)"]
[null,null,null,null,null,null,null,"valeurs à renseigner"]
[]
[null,null,null,null,null,"A- ECRAN",null,null,null,null,"B- TOURS"]
[]
[null,null,null,null,null,"he",4,"m","hauteur de l'ecran",null,"type de tour"]
[null,null,null,null,null,"b",6,"m","largeur de l'ecran",null,"ht min",{"$f":"zg+he+1.5","v":7.5},"m","hauteur mini des tours/ hauteur de l'ecran"]
[null,null,null,null,null,"Arefe",{"$f":"b*he","v":24},"m2","surface de l'ecran",null,"ht",10,"m","hauteur des tours"]
[null,null,null,null,null,"zg",2,"m","distance entre le sol et base de l'ecran",null,"l min",{"$f":"b+1","v":7},"m","entraxe mini entre tours"]
[null,null,null,null,null,"pe",750,"kg","poids de l'ecran",null,"l",7,"m","entraxe entre les tours"]
[null,null,null,null,null,"ppal",250,"kg","poids des palans et cablerie",null,"em min",{"$f":"ht/4","v":2.5},"m","empattement mini"]
[null,null,null,null,null,"pte",{"$f":"ppal+pe","v":1000},"kg","poids total suspendu",null,"em av",6,"m","empattement de l'axe tour/ appui face avant"]
[null,null,null,null,null,null,null,null,null,null,"em ar",6,"m","empattement de l'axe tour/ appui au lointain"]
[null,null,null,null,null,null,null,null,null,null,"ptt",{"$f":"(INDEX(tours!A4:G5,tours!E8,7)*(2*ht+lg_pont+2*em_av+2*em_ar))+INDEX(tours!A4:G5,tours!E8,2)","v":437},"kgs","poids de l'arche seule"]
[null,null,null,null,null,"Fwe(z12)",{"$f":"fwe_arche","v":3764.5171199999995},"kg","action horizontale du vent sur écran",null,"cr_max","N/A","kgf.m","non applicable car haubans"]
[null,null,null,null,null,null,null,null,null,null,"Fwt(z12)",{"$f":"fwt_arche","v":173.84749200000002},"kg","action horizontale du vent sur 1 tour"]
[null,null,null,null,null,"pre",{"$f":"G13/G8","v":166.66666666666666},"kg/ml","poids reparti"]
[null,null,null,null,null,null,null,null,null,null,"C-PONT"]
[null,null,null,null,null,null,null,null,null,null,"section de pont"]
["Valeurs de reference du vent"]
["Vb,0",24,"m/s","valeur de base de la vitesse de reférence du vent (moyenne sur 10min à 10m/sol)\npeut être ajusté en fonction du département d'exploitation (voir fig.1)",null,null,null,null,null,null,"lg pont",{"$f":"ROUNDUP(l_-0.5,0)","v":7},"m","(valeur pour calculs)"]
["Cseason",1,null,"coefficient de saison d'exploitation (voir figure 3 en dessous) (1 par defaut)",null,null,null,null,null,null,"qmax",{"$f":"INDEX(lineaires!A6:X8,lineaires!D3+1,L22+2)","v":177},"kg/ml","limité par la section de pont"]
["Vb",{"$f":"vb_0*cseason","v":24},"m/s","Vitesse de reference du vent (vmoyen sur 10min, terrain cat2, p0.02)",null,null,null,null,null,null,{"$f":"IF(pre<qmax_struc,\"section de pont compatible avec le poids de l'écran\",\"Pont incompatible: diminuer poids ou la taille de l'écran OU passer à une section de pont supérieure OU reduire l'entraxe des tours\")","v":"section de pont compatible avec le poids de l'écran"}]
[null,{"$f":"Vb*3.6","v":86.4},"km/h",null,null,null,null,null,null,null,"zep max",{"$f":"ht-1.5","v":8.5},"m","hauteur maxi sous pont"]
["categorie terrain",null,null,"II par defaut",{"$f":"(INDEX(vent!A4:G8,vent!C10,3))","v":"Rase campagne, avec ou non quelques obstacles isolés (arbres, bâtiments,\netc.) séparés les uns des autres de plus de 40 fois leur hauteur"}]
["extrait de EN 1991-1-4/NA"]
[null,null,null,null,null,null,null,null,null,null,"ptp",{"$f":"INDEX(lineaires!A6:X8,lineaires!D3+1,24)*lg_pont","v":49},"kg","estimation du poids du pont"]
[null,null,null,null,null,null,null,null,null,null,"Fwp(z12)",{"$f":"fwp_arche","v":69.538996800000007},"kg","action horizontale du vent sur le pont"]
[null,null,null,null,null,null,null,null,null,null,"STABILITE"]
[null,null,null,null,null,null,null,null,null,null,"∑ptn",{"$f":"SUM(pte+ptt+L28)","v":1486},"kg","poids total de l'ensemble"]
[null,null,null,null,null,null,null,null,null,null,"Mr",{"$f":"fwe_arche*(zg+(he/2))+(fwt_arche*2*ht/2)+(fwp_arche*zep_max)","v":17387.624872799999},"kgf.m","moment du vent appliqué à l'arche "]
[null,null,null,null,null,null,null,null,null,null,"Lest mini face (LF)",{"$f":"1.2*(((Mr/2)/(em_av+em_ar))-(∑ptn/2*em_ar)/(em_ar+em_av))","v":423.58124363999997},"kg","valeur mini de chaque lest  à placer aux extremités des pattes avant"]
[null,null,null,null,null,null,null,null,null,null,"Lest mini lointain (LL)",{"$f":"1.2*(((Mr/2)/(em_av+em_ar))-(∑ptn/2*em_av)/(em_ar+em_av))","v":423.58124363999997},"kg","valeur mini de chaque lest  à placer aux extremités des pattes arrieres"]
[null,null,null,null,null,null,null,null,null,null,"Fh",{"$f":"'ECRAN SUR ARCHE'!Mr/'ECRAN SUR ARCHE'!ht/2","v":869.38124363999998},"kgf","effort horizontal du vent en haut de chaque tour"]
[null,null,null,null,null,null,null,null,null,null,"ang h",{"$f":"DEGREES(ATAN(MIN(L13:L14)/'ECRAN SUR ARCHE'!ht))","v":30.963756532073521},"°","angle min des haubans/vertical"]
[null,null,null,null,null,null,null,null,null,null,"Fc",{"$f":"IF(Fh/SIN(RADIANS(ang_h))>2850,\"CRITIQUE\",Fh/SIN(RADIANS(ang_h)))","v":1689.7734033152071},"kgf","CMU mini, dû au vent par cable d'haubannage"]
[null,null,null,null,null,null,null,null,null,null,null,{"$f":"IFERROR(L37*5,\"augmenter em\")","v":8448.8670165760359},"kgf","effort de resistance à la rupture mini par cable"]
[]
[]
[null,null,null,null,null,null,null,null,null,{"$f":"'ECRAN SUR TOURS'!J37","v":"Notes:"}]
[null,null,null,null,null,null,null,null,null,{"$f":"'ECRAN SUR TOURS'!J38","v":"les tours et ponts ne sont pas habillés d'une décoration occultante; Coef. CsCd=1"}]
[null,null,null,null,null,null,null,null,null,{"$f":"'ECRAN SUR TOURS'!J39","v":"(*) Ce formulaire est transmis à titre indicatif et n'est destiné qu' à faire un pré-dimensionnement sur la compatibilité des sections choisies."}]
[null,null,null,null,null,null,null,null,null,{"$f":"'ECRAN SUR TOURS'!J40","v":"Il ne peut, en aucun cas, se substituer à une note de calculs officielle (à réaliser sur demande)."}]
[null,null,null,null,null,null,null,null,null,{"$f":"'ECRAN SUR TOURS'!J41","v":"(**)il est necessaire de prevoir les sandows dans les deux coins inferieurs de l'ecran relié à l'arche pour limiter la hauteur d'action du vent"}]
[]
[null,null,null,null,null,null,null,null,null,{"$f":"'ECRAN SUR TOURS'!J43","v":"BE calculs: Cedia industrie/S.Chrisment"}]
[null,null,null,null,null,null,null,null,null,{"$f":"'ECRAN SUR TOURS'!J44","v":"Réf: "},{"$f":"'ECRAN SUR TOURS'!$K$44","v":"03119-NT1 ©2019"}]

{"sheet":"tours","index":2,"n_rows":12,"n_cols":7,"rows_kept":12,"cut":false,"hidden":true,"merged":[[11,0,11,4]]}
[null,"poids propre kg","cr_max kgf.m","empattement maxi (m)","cf(6-12m)","Aref m2/ml","sw kg/ml"]
["TL290",250,{"$f":"ROUNDUP(2600*0.239*2,0)","v":1243},2.2000000000000002,1.33,0.15,7]
["TL400",400,{"$f":"ROUNDUP(3600*0.339*2,0)","v":2441},2.75,1.52,0.16,8]
["SC300",80,{"$f":"C2","v":1243},null,{"$f":"E2","v":1.33},{"$f":"F2","v":0.15},7]
["SC390",110,{"$f":"C3","v":2441},null,{"$f":"E3","v":1.52},{"$f":"F3","v":0.16},8]
[]
[null,null,null,"index tours",2]
[null,null,null,"index tour arche",1]
[]
[1,{"$f":"A10+1","v":2},{"$f":"B10+1","v":3},4,5,6,7]
[]
["pour sc300 et sc390, préciser le poids des tetes de tetes de tour (hors lineaires)+chariot"]

{"sheet":"lineaires","index":3,"n_rows":11,"n_cols":26,"rows_kept":11,"cut":false,"hidden":true,"merged":[]}
[]
[]
["taux de fleche","1/300",null,1,"cellule liée index ligne"]
[]
[]
[null,"portée(m)",1,{"$f":"C6+1","v":2},3,4,5,6,7,8,9,10,11,12,13,14,15,16,17,18,19,20,null,"sw kg/ml","cf(6-12m)","Aref m2/ml"]
["SC300","qmax (kg/ml)",1543,768,510,381,303,252,177,117,80,56,41,30,22,16,12,9,6,4,3,1,null,7,1.33,0.15]
["SC390","qmax (kg/ml)",2441,1217,809,604,482,369,269,204,160,118,87,65,49,38,29,23,18,14,11,8,null,8,1.52,0.16]
[]
[]
[1,{"$f":"A11+1","v":2},{"$f":"B11+1","v":3},4,5,6,7,8,9,10,11,12,13,14,15,16,17,18,19,20,21,22,23,24,{"$f":"X11+1","v":25},{"$f":"Y11+1","v":26}]

{"sheet":"vent","index":4,"n_rows":38,"n_cols":13,"rows_kept":38,"cut":false,"hidden":true,"merged":[[13,3,13,6],[19,3,19,6]]}
["4-3 categories de terrain"]
[1,{"$f":"1+A2","v":2},{"$f":"1+B2","v":3},4,5,6,7,8,9,10,11,12]
["N°","index","details categories","zo(m)","zmin(m)","kR","kl","crz(12m)","cez(12m)",null,null,null,"suivant en1991-1-4/na/a1"]
[0,1,"Mer ou zone côtière exposée aux vents de mer ; lacs et plans d’eau parcourus\npar le vent sur une distance d’au moins 5 km",5.0000000000000001E-3,1,0.16200000000000001,1,1.26,3.02]
["II",2,"Rase campagne, avec ou non quelques obstacles isolés (arbres, bâtiments,\netc.) séparés les uns des autres de plus de 40 fois leur hauteur",0.05,2,0.19,1,1.04,2.4700000000000002]
["IIIa",3,"Campagne avec des haies ; vignobles ; bocage ; habitat dispersé",0.2,5,0.20899999999999999,0.97,0.86,1.95]
["IIIb",4,"Zones urbanisées ou industrielles ; bocage dense ; vergers",0.5,9,0.223,0.92,0.71,1.52]
["IV",5,"Zones urbaines dont au moins 15 % de la surface sont recouverts de bâtiments\ndont la hauteur moyenne est supérieure à 15 m ; forêts",1,15,0.23400000000000001,0.85,0.63,1.28]
[]
[null,"index cellule liée",2]
[]
[null,null,null,null,null,null,null,"arche"]
[]
["qb",{"$f":"(1.225/2)*Vb^2","v":352.8},"Pa (N/m2)","pression dynamique moyenne de référence",null,null,null,"qb arche",{"$f":"(1.225/2)*vb_arche^2","v":352.8}]
["vb",{"$f":"Vb","v":24},"m/s",null,null,null,null,"vb arche",{"$f":"'ECRAN SUR ARCHE'!Vb","v":24},"m/s"]
[]
["crz",{"$f":"INDEX(A4:H8,C10,8)","v":1.04},"coefficient de rugosité",null,null,null,null,null,"idem tour"]
["vmz",{"$f":"B17*B15","v":24.96},"Vent moyen à hauteur z (m/s)",null,null,null,null,"vmz arche",{"$f":"B17*I15","v":24.96},"m/s"]
["cez",{"$f":"INDEX(A4:I8,C10,9)","v":2.4700000000000002},"coefficient d'exposition",null,null,null,null,null,"idem tour"]
["qp(z)",{"$f":"B19*qb","v":871.41600000000005},"Pa (N/m2)","pression dynamique de pointe",null,null,null,"qpz arche",{"$f":"B19*qb_arche","v":871.41600000000005},"Pa (N/m2)"]
[]
[null,null,"cat",{"$f":"INDEX(A4:L9,C10,1)","v":"II"}]
[null,null,"cscd",1,"forfaitaire","<15m"]
[null,null,"TOURS",null,null,null,null,"tour arche"]
[null,null,"cft",{"$f":"INDEX(tours!A2:H3,tours!E7,5)","v":1.52},null,null,null,"cft arche",{"$f":"INDEX(tours!A4:H5,tours!E8,5)","v":1.33}]
[null,null,"Areft",{"$f":"INDEX(tours!A2:H3,tours!E7,6)*ht","v":0.96},"m2",null,null,"Areft arche",{"$f":"INDEX(tours!A4:G5,tours!E8,6)*'ECRAN SUR ARCHE'!ht","v":1.5},"m2"]
[null,null,"Fwt",{"$f":"cscd*cft*qp_z*Areft","v":1271.5702271999999},"N/tour",null,null,"Fwt arche",{"$f":"cscd*cft_arche*qpz_arche*Areft_arche","v":1738.4749200000001},"N/tour"]
[null,null,null,{"$f":"D27/10","v":127.15702271999999},"daN/tour",null,null,null,{"$f":"I27/10","v":173.84749200000002},"daN/tour"]
[null,null,"ECRAN",null,null,null,null,"ecran arche"]
[null,null,"cfe",1.8,null,"7.4.3",null,null,"idem"]
[null,null,"Arefe",{"$f":"Arefe","v":6},"m2",null,null,"Arefe arche",{"$f":"'ECRAN SUR ARCHE'!Arefe","v":24},"m2"]
[null,null,"Fwe",{"$f":"cscd*cfe*qp_z*Arefe","v":9411.2927999999993},"N",null,null,"fwe arche",{"$f":"cscd*cfe*qpz_arche*I31","v":37645.171199999997},"N"]
[null,null,null,{"$f":"D32/10","v":941.12927999999988},"daN",null,null,null,{"$f":"I32/10","v":3764.5171199999995},"daN"]
[null,null,"PONT",null,null,null,null,"pont arche"]
[null,null,"cfp",{"$f":"INDEX(lineaires!A7:Z8,lineaires!D3,25)","v":1.33},null,null,null,null,"idem"]
[null,null,"Arefp",{"$f":"INDEX(lineaires!A7:Z8,lineaires!D3,26)*lg_pont","v":0.6},"m2",null,null,null,"idem"]
[null,null,"Fwp",{"$f":"cscd*cfp*qp_z*Arefp","v":695.38996800000007},"N/tour",null,null,"fwp arche",{"$f":"cscd*cfp*qpz_arche*Arefp","v":695.38996800000007},"N/tour"]
[null,null,null,{"$f":"D37/10","v":69.538996800000007},"daN/tour",null,null,null,{"$f":"I37/10","v":69.538996800000007},"daN/tour"]